fUSD/lending_fUSD_20240421
["ID","MTS","AMOUNT","RATE_DAILY","PERIOD"]
[323127773,1713697842050,-151.0,0.00015588,2]
[323127774,1713697842059,-151.0,0.00015588,2]
[323127775,1713697842069,-388.789038,0.00015588,2]
[323127776,1713697842079,-388.789038,0.00015588,2]
[323127777,1713697842090,-229.011556,0.00015588,2]
[323127778,1713697842100,-605.842851,0.00015588,2]
[323127779,1713697842110,-605.842851,0.00015588,2]
[323127780,1713697842119,-352.149187,0.00015588,2]
[323127781,1713697842129,-156.240853,0.00015588,2]
[323127782,1713697842140,-352.149187,0.00015588,2]
[323127783,1713697842150,-156.240853,0.00015588,2]
[323127784,1713697842164,-151.0,0.00015588,2]
[323127785,1713697842177,-151.0,0.00015588,2]
[323127786,1713697842191,-151.0,0.00015588,2]
[323127787,1713697842202,-151.0,0.00015588,2]
[323127788,1713697842213,-1984.682266,0.00015588,2]
[323127789,1713697842223,-1984.682266,0.00015588,2]
[323127790,1713697842234,-153.088949,0.00015588,2]
[323127791,1713697842245,-151.0,0.00015588,2]
[323127792,1713697842255,-165.73577,0.00015588,2]
[323127793,1713697842265,-165.73577,0.00015588,2]
[323127794,1713697842279,-248.138589,0.00015588,2]
[323127795,1713697842291,-153.080501,0.00015588,2]
[323127796,1713697842303,-151.974855,0.00015588,2]
[323127797,1713697842315,-248.138589,0.00015588,2]
[323127798,1713697842327,-151.974855,0.00015588,2]
[323127799,1713697842339,-151.0,0.00015588,2]
[323127800,1713697842351,-182.826577,0.00015588,2]
[323127801,1713697842362,-151.0,0.00015588,2]
[323127802,1713697842372,-151.0,0.00015588,2]
[323127803,1713697842385,-331.121514,0.00015588,2]
[323127804,1713697842396,-182.826577,0.00015588,2]
[323127805,1713697842407,-331.121514,0.00015588,2]
[323127806,1713697842418,-337.931997,0.00015588,2]
[323127807,1713697842428,-337.931997,0.00015588,2]
[323127808,1713697842442,-151.0,0.00015588,2]
[323127809,1713697842452,-163.314784,0.00015588,2]
[323127810,1713697842464,-163.314784,0.00015588,2]
[323127811,1713697842475,-345.004373,0.00015588,2]
[323127812,1713697842485,-345.004373,0.00015588,2]
[323127813,1713697842496,-151.0,0.00015588,2]
[323127814,1713697842506,-151.0,0.00015588,2]
[323127815,1713697842517,-280.620801,0.00015588,2]
[323127816,1713697842529,-151.0,0.00015588,2]
[323127817,1713697842539,-151.0,0.00015588,2]
[323127819,1713697842550,-151.0,0.00015588,2]
[323127820,1713697842561,-158.096249,0.00015588,2]
[323127821,1713697842571,-158.096249,0.00015588,2]
[323127822,1713697842582,-3492.481418,0.00015588,2]
[323127823,1713697842593,-151.0,0.00015588,2]
[323127824,1713697842603,-151.0,0.00015588,2]
[323127825,1713697842613,-3492.481418,0.00015588,2]
[323127826,1713697842624,-191.684793,0.00015588,2]
[323127827,1713697842634,-151.0,0.00015588,2]
[323127828,1713697842644,-154.419595,0.00015588,2]
[323127829,1713697842654,-151.0,0.00015588,2]
[323127830,1713697842663,-150.0,0.00015589,2]
[323127831,1713697842673,-250000.0,0.0001559,2]
[323127832,1713697842683,-151.0,0.0001559,2]
[323127833,1713697842698,-151.0,0.0001559,2]
[323127834,1713697842709,-151.0,0.0001559,2]
[323127835,1713697842720,-151.0,0.0001559,2]
[323127837,1713697842730,-151.0,0.0001559,2]
[323127838,1713697842740,-151.0,0.0001559,2]
[323127839,1713697842750,-151.0,0.0001559,2]
[323127840,1713697842760,-151.0,0.0001559,2]
[323127841,1713697842770,-151.0,0.0001559,2]
[323127842,1713697842780,-151.0,0.0001559,2]
[323127843,1713697842790,-151.0,0.0001559,2]
[323127844,1713697842799,-269.221676,0.0001559,2]
[323127846,1713697842809,-269.221676,0.0001559,2]
[323127848,1713697842818,-151.0,0.0001559,2]
[323127850,1713697842827,-151.0,0.0001559,2]
[323127852,1713697842837,-151.0,0.0001559,2]
[323127854,1713697842846,-151.0,0.0001559,2]
[323127856,1713697842855,-151.80218,0.0001559,2]
[323127858,1713697842864,-151.0,0.0001559,2]
[323127860,1713697842874,-151.0,0.0001559,2]
[323127862,1713697842883,-151.0,0.0001559,2]
[323127864,1713697842893,-151.0,0.0001559,2]
[323127866,1713697842902,-388.789038,0.0001559,2]
[323127867,1713697842911,-388.789038,0.0001559,2]
[323127868,1713697842921,-605.842851,0.0001559,2]
[323127869,1713697842931,-605.842851,0.0001559,2]
[323127870,1713697842942,-352.149187,0.0001559,2]
[323127871,1713697842952,-156.240853,0.0001559,2]
[323127872,1713697842962,-352.149187,0.0001559,2]
[323127873,1713697842971,-156.240853,0.0001559,2]
[323127874,1713697842980,-167.98588,0.0001559,2]
[323127875,1713697842990,-151.0,0.0001559,2]
[323127876,1713697842999,-151.0,0.0001559,2]
[323127877,1713697843008,-151.0,0.0001559,2]
[323127878,1713697843017,-1984.682266,0.0001559,2]
[323127879,1713697843027,-1984.682266,0.0001559,2]
[323127880,1713697843037,-151.0,0.0001559,2]
[323127881,1713697843046,-165.73577,0.0001559,2]
[323127882,1713697843056,-165.73577,0.0001559,2]
[323127883,1713697843066,-248.138589,0.0001559,2]
[323127884,1713697843076,-151.974855,0.0001559,2]
[323127885,1713697843086,-248.138589,0.0001559,2]
[323127886,1713697843095,-151.974855,0.0001559,2]
[323127887,1713697843104,-151.0,0.0001559,2]
[323127888,1713697843114,-182.826577,0.0001559,2]
[323127889,1713697843123,-151.80994,0.0001559,2]
[323127890,1713697843134,-151.0,0.0001559,2]
[323127891,1713697843144,-331.121514,0.0001559,2]
[323127892,1713697843153,-182.826577,0.0001559,2]
[323127893,1713697843164,-331.121514,0.0001559,2]
[323127894,1713697843173,-337.931997,0.0001559,2]
[323127895,1713697843183,-337.931997,0.0001559,2]
[323127896,1713697843196,-151.0,0.0001559,2]
[323127897,1713697843206,-163.314784,0.0001559,2]
[323127898,1713697843217,-163.314784,0.0001559,2]
[323127899,1713697843227,-345.004373,0.0001559,2]
[323127900,1713697843239,-345.004373,0.0001559,2]
[323127901,1713697843249,-204.214271,0.0001559,2]
[323127902,1713697843259,-151.0,0.0001559,2]
[323127903,1713697843268,-151.0,0.0001559,2]
[323127904,1713697843277,-151.0,0.0001559,2]
[323127905,1713697843287,-151.0,0.0001559,2]
[323127906,1713697843297,-158.096249,0.0001559,2]
[323127907,1713697843307,-158.096249,0.0001559,2]
[323127908,1713697843317,-3492.481418,0.0001559,2]
[323127909,1713697843328,-151.0,0.0001559,2]
[323127910,1713697843337,-151.0,0.0001559,2]
[323127911,1713697843347,-3492.481418,0.0001559,2]
[323127912,1713697843357,-151.0,0.0001559,2]
[323127913,1713697843366,-151.9,0.0001559,2]
[323127914,1713697843375,-151.9,0.0001559,2]
[323127915,1713697843385,-151.0,0.0001559,2]
[323127916,1713697843395,-150.0,0.00015593,2]
[323127917,1713697843405,-150.0,0.00015597,2]
[323127918,1713697843415,-2172.87463985,0.00015598,2]
[323127919,1713697843425,-1204.57088791,0.00015599,5]
[323127920,1713697843434,-207.15994535,0.00015599,2]
[323127921,1713697843445,-5843.71883814,0.00015599,2]
[323127922,1713697843454,-150.0,0.00015599,2]
[323127923,1713697843464,-539550.49001258,0.000156,5]
[323127924,1713697843473,-8000.0,0.000156,2]
[323127925,1713697843482,-151.0,0.000156,2]
[323127926,1713697843491,-151.0,0.000156,2]
[323127927,1713697843500,-151.0,0.000156,2]
[323127928,1713697843509,-151.0,0.000156,2]
[323127929,1713697843518,-151.0,0.000156,2]
[323127930,1713697843528,-151.0,0.000156,2]
[323127931,1713697843538,-153.278792,0.000156,2]
[323127932,1713697843548,-151.0,0.000156,2]
[323127933,1713697843557,-151.0,0.000156,2]
[323127934,1713697843567,-151.0,0.000156,2]
[323127935,1713697843577,-151.0,0.000156,2]
[323127936,1713697843587,-269.221676,0.000156,2]
[323127937,1713697843596,-269.221676,0.000156,2]
[323127938,1713697843605,-151.0,0.000156,2]
[323127939,1713697843615,-151.0,0.000156,2]
[323127940,1713697843625,-151.0,0.000156,2]
[323127941,1713697843634,-151.0,0.000156,2]
[323127942,1713697843643,-151.0,0.000156,2]
[323127943,1713697843652,-151.0,0.000156,2]
[323127944,1713697843661,-151.0,0.000156,2]
[323127945,1713697843670,-388.789038,0.000156,2]
[323127946,1713697843680,-388.789038,0.000156,2]
[323127947,1713697843691,-605.842851,0.000156,2]
[323127948,1713697843700,-605.842851,0.000156,2]
[323127949,1713697843708,-352.149187,0.000156,2]
[323127950,1713697843717,-352.149187,0.000156,2]
[323127951,1713697843726,-156.240853,0.000156,2]
[323127952,1713697843735,-156.240853,0.000156,2]
[323127953,1713697843745,-482.0,0.000156,2]
[323127954,1713697843754,-151.0,0.000156,2]
[323127955,1713697843763,-151.0,0.000156,2]
[323127956,1713697843773,-151.0,0.000156,2]
[323127957,1713697843783,-1984.682266,0.000156,2]
[323127958,1713697843793,-1984.682266,0.000156,2]
[323127959,1713697843802,-158.123719,0.000156,2]
[323127960,1713697843811,-165.73577,0.000156,2]
[323127961,1713697843820,-165.73577,0.000156,2]
[323127962,1713697843830,-248.138589,0.000156,2]
[323127963,1713697843839,-151.974855,0.000156,2]
[323127964,1713697843849,-248.138589,0.000156,2]
[323127965,1713697843859,-151.974855,0.000156,2]
[323127966,1713697843870,-151.0,0.000156,2]
[323127967,1713697843879,-182.826577,0.000156,2]
[323127968,1713697843890,-206.749615,0.000156,2]
[323127969,1713697843899,-331.121514,0.000156,2]
[323127970,1713697843909,-182.826577,0.000156,2]
[323127971,1713697843918,-331.121514,0.000156,2]
[323127972,1713697843928,-5100.0,0.000156,5]
[323127973,1713697843937,-337.931997,0.000156,2]
[323127974,1713697843948,-337.931997,0.000156,2]
[323127975,1713697843958,-151.0,0.000156,2]
[323127976,1713697843967,-163.314784,0.000156,2]
[323127977,1713697843977,-163.314784,0.000156,2]
[323127978,1713697843986,-345.004373,0.000156,2]
[323127979,1713697843996,-345.004373,0.000156,2]
[323127980,1713697844006,-151.0,0.000156,2]
[323127981,1713697844015,-160.027403,0.000156,2]
[323127982,1713697844025,-151.0,0.000156,2]
[323127983,1713697844035,-151.0,0.000156,2]
[323127984,1713697844045,-158.096249,0.000156,2]
[323127985,1713697844055,-158.096249,0.000156,2]
[323127986,1713697844065,-3492.481418,0.000156,2]
[323127987,1713697844075,-151.0,0.000156,2]
[323127988,1713697844084,-151.0,0.000156,2]
[323127989,1713697844093,-3492.481418,0.000156,2]
[323127990,1713697844103,-151.0,0.000156,2]
[323127991,1713697844113,-151.0,0.000156,2]
[323127992,1713697844123,-150.0,0.00015604,2]
[323127993,1713697844134,-150.0,0.00015614,2]
[323127994,1713697844143,-150.0,0.00015615,2]
[323127995,1713697844152,-10000.0,0.00015616,2]
[323127996,1713697844164,-10000.0,0.00015616,2]
[323127997,1713697844173,-10000.0,0.00015616,2]
[323127998,1713697844183,-10000.0,0.00015616,2]
[323127999,1713697844194,-10000.0,0.00015616,2]
[323128000,1713697844203,-7495.12041574,0.00015616,2]
[323128001,1713697844213,-151.0,0.00015616,2]
[323128002,1713697844223,-151.0,0.00015616,2]
[323128003,1713697844233,-260.215771,0.00015616,2]
[323128004,1713697844242,-220.807383,0.00015616,2]
[323128005,1713697844251,-153.502949,0.00015616,2]
[323128006,1713697844260,-151.0,0.00015616,2]
[323128007,1713697844270,-151.0,0.00015616,2]
[323128008,1713697844279,-151.0,0.00015616,2]
[323128009,1713697844294,-151.0,0.00015616,2]
[323128010,1713697844305,-151.0,0.00015616,2]
[323128011,1713697844314,-269.221676,0.00015616,2]
[323128012,1713697844324,-269.221676,0.00015616,2]
[323128013,1713697844333,-151.0,0.00015616,2]
[323128014,1713697844343,-151.0,0.00015616,2]
[323128015,1713697844354,-151.0,0.00015616,2]
[323128016,1713697844364,-151.0,0.00015616,2]
[323128017,1713697844373,-151.0,0.00015616,2]
[323128018,1713697844383,-151.0,0.00015616,2]
[323128019,1713697844392,-151.0,0.00015616,2]
[323128020,1713697844402,-388.789038,0.00015616,2]
[323128021,1713697844412,-388.789038,0.00015616,2]
[323128022,1713697844421,-605.842851,0.00015616,2]
[323128023,1713697844430,-605.842851,0.00015616,2]
[323128024,1713697844442,-352.149187,0.00015616,2]
[323128025,1713697844451,-156.240853,0.00015616,2]
[323128026,1713697844460,-352.149187,0.00015616,2]
[323128027,1713697844468,-156.240853,0.00015616,2]
[323128028,1713697844478,-151.0,0.00015616,2]
[323128029,1713697844487,-284.645866,0.00015616,2]
[323128030,1713697844498,-151.0,0.00015616,2]
[323128031,1713697844507,-1984.682266,0.00015616,2]
[323128032,1713697844518,-1984.682266,0.00015616,2]
[323128033,1713697844526,-165.73577,0.00015616,2]
[323128034,1713697844536,-165.73577,0.00015616,2]
[323128035,1713697844545,-248.138589,0.00015616,2]
[323128036,1713697844555,-151.974855,0.00015616,2]
[323128037,1713697844565,-151.974855,0.00015616,2]
[323128038,1713697844574,-248.138589,0.00015616,2]
[323128039,1713697844584,-296.634324,0.00015616,2]
[323128040,1713697844593,-182.826577,0.00015616,2]
[323128041,1713697844603,-331.121514,0.00015616,2]
[323128042,1713697844612,-182.826577,0.00015616,2]
[323128043,1713697844621,-331.121514,0.00015616,2]
[323128044,1713697844630,-337.931997,0.00015616,2]
[323128045,1713697844640,-337.931997,0.00015616,2]
[323128046,1713697844649,-271.398829,0.00015616,2]
[323128047,1713697844659,-163.314784,0.00015616,2]
[323128048,1713697844668,-163.314784,0.00015616,2]
[323128049,1713697844677,-345.004373,0.00015616,2]
[323128050,1713697844686,-345.004373,0.00015616,2]
[323128051,1713697844697,-151.0,0.00015616,2]
[323128052,1713697844706,-151.0,0.00015616,2]
[323128053,1713697844715,-151.0,0.00015616,2]
[323128054,1713697844724,-158.096249,0.00015616,2]
[323128055,1713697844733,-158.096249,0.00015616,2]
[323128056,1713697844742,-3492.481418,0.00015616,2]
[323128057,1713697844751,-189.04774,0.00015616,2]
[323128058,1713697844761,-151.0,0.00015616,2]
[323128059,1713697844770,-3492.481418,0.00015616,2]
[323128060,1713697844779,-151.0,0.00015616,2]
[323128061,1713697844788,-151.0,0.00015616,2]
[323128062,1713697844797,-212.518845,0.00015616,2]
[323128063,1713697844807,-150.0,0.0001562,2]
[323128064,1713697844816,-150.0,0.00015621,2]
[323128065,1713697844825,-500.0,0.00015622,2]
[323128066,1713697844835,-500.0,0.00015622,2]
[323128067,1713697844844,-500.0,0.00015622,2]
[323128068,1713697844854,-500.0,0.00015622,2]
[323128069,1713697844864,-559.9303,0.00015622,2]
[323128070,1713697844873,-1000.0,0.00015622,2]
[323128071,1713697844882,-1000.0,0.00015622,2]
[323128072,1713697844891,-1000.0,0.00015622,2]
[323128073,1713697844900,-1000.0,0.00015622,2]
[323128074,1713697844910,-1000.0,0.00015622,2]
[323128075,1713697844919,-1000.0,0.00015622,2]
[323128076,1713697844928,-1000.0,0.00015622,2]
[323128077,1713697844937,-1000.0,0.00015622,2]
[323128078,1713697844948,-1000.0,0.00015622,2]
[323128079,1713697844957,-1000.0,0.00015622,2]
[323128080,1713697844966,-1000.0,0.00015622,2]
[323128081,1713697844975,-1000.0,0.00015622,2]
[323128082,1713697844985,-1000.0,0.00015622,2]
[323128083,1713697844994,-1000.0,0.00015622,2]
[323128084,1713697845003,-1000.0,0.00015622,2]
[323128085,1713697845012,-1000.0,0.00015622,2]
[323128086,1713697845021,-1000.0,0.00015622,2]
[323128087,1713697845030,-1000.0,0.00015622,2]
[323128088,1713697845039,-1000.0,0.00015622,2]
[323128089,1713697845049,-1000.0,0.00015622,2]
[323128090,1713697845058,-1000.0,0.00015622,2]
[323128091,1713697845067,-1000.0,0.00015622,2]
[323128092,1713697845076,-1000.0,0.00015622,2]
[323128093,1713697845086,-1000.0,0.00015622,2]
[323128094,1713697845095,-604.191,0.00015622,2]
[323128095,1713697845104,-1897.59,0.00015625,2]
[323128096,1713697845114,-839.8,0.00015625,2]
[323128097,1713697845123,-150.0,0.00015626,2]
[323128098,1713697845134,-150.0,0.00015626,2]
[323128099,1713697845144,-150.0,0.00015632,2]
[323128100,1713697845154,-150.0,0.00015633,2]
[323128101,1713697845165,-150.0,0.00015633,2]
[323128102,1713697845174,-150.0,0.00015635,2]
[323128103,1713697845184,-150.0,0.00015637,2]
[323128104,1713697845357,-150.0,0.00015637,2]
[323128105,1713697845367,-150.0,0.00015641,2]
[323128106,1713697845376,-150.0,0.00015642,2]
[323128107,1713697845386,-150.0,0.00015647,2]
[323128108,1713697845396,-151.0,0.0001565,2]
[323128109,1713697845409,-151.0,0.0001565,2]
[323128110,1713697845418,-151.0,0.0001565,2]
[323128111,1713697845427,-234.695833,0.0001565,2]
[323128112,1713697845436,-151.0,0.0001565,2]
[323128113,1713697845446,-151.0,0.0001565,2]
[323128114,1713697845455,-151.0,0.0001565,2]
[323128115,1713697845464,-269.221676,0.0001565,2]
[323128116,1713697845473,-269.221676,0.0001565,2]
[323128117,1713697845482,-151.0,0.0001565,2]
[323128118,1713697845491,-257.543088,0.0001565,2]
[323128119,1713697845500,-151.0,0.0001565,2]
[323128120,1713697845509,-151.0,0.0001565,2]
[323128121,1713697845518,-266.781229,0.0001565,2]
[323128122,1713697845527,-151.0,0.0001565,2]
[323128123,1713697845536,-151.0,0.0001565,2]
[323128124,1713697845545,-388.789038,0.0001565,2]
[323128125,1713697845554,-388.789038,0.0001565,2]
[323128126,1713697845564,-605.842851,0.0001565,2]
[323128127,1713697845573,-605.842851,0.0001565,2]
[323128128,1713697845583,-352.149187,0.0001565,2]
[323128129,1713697845592,-352.149187,0.0001565,2]
[323128130,1713697845601,-156.240853,0.0001565,2]
[323128131,1713697845611,-156.240853,0.0001565,2]
[323128132,1713697845620,-151.0,0.0001565,2]
[323128133,1713697845629,-151.0,0.0001565,2]
[323128134,1713697845638,-1984.682266,0.0001565,2]
[323128135,1713697845647,-1984.682266,0.0001565,2]
[323128136,1713697845656,-165.73577,0.0001565,2]
[323128137,1713697845665,-165.73577,0.0001565,2]
[323128138,1713697845674,-248.138589,0.0001565,2]
[323128139,1713697845684,-151.974855,0.0001565,2]
[323128140,1713697845694,-151.974855,0.0001565,2]
[323128141,1713697845703,-248.138589,0.0001565,2]
[323128142,1713697845712,-331.121514,0.0001565,2]
[323128143,1713697845721,-331.121514,0.0001565,2]
[323128144,1713697845731,-163.314784,0.0001565,2]
[323128145,1713697845740,-163.314784,0.0001565,2]
[323128146,1713697845750,-219.80509,0.0001565,2]
[323128147,1713697845760,-151.0,0.0001565,2]
[323128148,1713697845769,-209.057113,0.0001565,2]
[323128149,1713697845778,-158.096249,0.0001565,2]
[323128150,1713697845788,-158.096249,0.0001565,2]
[323128151,1713697845798,-3492.481418,0.0001565,2]
[323128152,1713697845808,-151.0,0.0001565,2]
[323128153,1713697845817,-3492.481418,0.0001565,2]
[323128154,1713697845827,-151.0,0.0001565,2]
[323128155,1713697845837,-300.0,0.0001565,2]
[323128156,1713697845846,-151.0,0.0001565,2]
[323128157,1713697845855,-150.0,0.00015652,2]
[323128158,1713697845866,-150.0,0.00015654,2]
[323128159,1713697845876,-1500.0,0.00015655,2]
[323128160,1713697845885,-150.0,0.00015655,2]
[323128161,1713697845895,-150.0,0.00015656,2]
[323128162,1713697845905,-150.0,0.00015659,2]
[323128163,1713697845914,-150.0,0.00015663,2]
[323128164,1713697845927,-150.0,0.00015665,2]
[323128165,1713697845937,-391.794,0.00015665,2]
[323128166,1713697845947,-807.0,0.00015665,2]
[323128167,1713697845956,-436.0,0.00015665,2]
[323128168,1713697845965,-609.0,0.00015665,2]
[323128169,1713697845974,-257.0,0.00015665,2]
[323128170,1713697845983,-150.0,0.00015667,2]
[323128171,1713697845993,-150.0,0.00015667,2]
[323128172,1713697846002,-150.0,0.00015673,2]
[323128173,1713697846011,-150.0,0.00015673,2]
[323128174,1713697846020,-150.0,0.00015675,2]
[323128175,1713697846029,-300.0,0.00015676,2]
[323128176,1713697846039,-399.0,0.00015677,2]
[323128177,1713697846049,-2444.0,0.00015677,2]
[323128178,1713697846058,-150.376,0.00015677,2]
[323128179,1713697846068,-3119.0,0.00015677,2]
[323128180,1713697846078,-214.0,0.00015677,2]
[323128181,1713697846089,-150.318,0.00015677,2]
[323128182,1713697846099,-443.0,0.00015677,2]
[323128183,1713697846110,-250.0,0.00015677,2]
[323128184,1713697846120,-1140.0,0.00015677,2]
[323128185,1713697846129,-150.0,0.00015677,2]
[323128186,1713697846141,-182.826577,0.00015677,2]
[323128187,1713697846150,-182.826577,0.00015677,2]
[323128188,1713697846160,-337.931997,0.00015677,2]
[323128189,1713697846172,-337.931997,0.00015677,2]
[323128190,1713697846181,-345.004373,0.00015677,2]
[323128191,1713697846192,-345.004373,0.00015677,2]
[323128192,1713697846201,-151.0,0.00015677,2]
[323128193,1713697846210,-158.096249,0.00015677,2]
[323128194,1713697846220,-158.096249,0.00015677,2]
[323128195,1713697846229,-3492.481418,0.00015677,2]
[323128196,1713697846240,-151.0,0.00015677,2]
[323128197,1713697846249,-3492.481418,0.00015677,2]
[323128198,1713697846258,-151.0,0.00015677,2]
[323128199,1713697846267,-5777.186,0.00015677,2]
[323128200,1713697846277,-2799.263,0.00015677,2]
[323128201,1713697846286,-5892.0,0.00015677,2]
[323128202,1713697846296,-37682.0,0.00015677,2]
[323128203,1713697846305,-1204.493,0.00015677,2]
[323128204,1713697846314,-159.02,0.00015677,2]
[323128205,1713697846324,-150.0,0.00015678,2]
[323128206,1713697846334,-300.0,0.00015686,2]
[323128207,1713697846343,-151.0,0.00015687,2]
[323128208,1713697846353,-1563.558644,0.00015687,2]
[323128209,1713697846362,-795.5597207,0.00015687,2]
[323128210,1713697846371,-1500.0,0.00015697,2]
[323128211,1713697846380,-150.0,0.00015697,2]
[323128212,1713697846390,-352.18991848,0.00015698,2]
[323128213,1713697846399,-277.14239824,0.00015698,2]
[323128214,1713697846409,-2678.43085245,0.00015698,2]
[323128215,1713697846418,-1537.76604985,0.00015698,2]
[323128216,1713697846428,-155.0,0.00015698,2]
[323128217,1713697846437,-162.90177364,0.00015698,2]
[323128218,1713697846448,-155.0,0.00015698,2]
[323128219,1713697846458,-76351.74688507,0.000157,2]
[323128220,1713697846467,-151.0,0.000157,2]
[323128221,1713697846477,-177.694304,0.000157,2]
[323128222,1713697846485,-151.0,0.000157,2]
[323128223,1713697846494,-151.0,0.000157,2]
[323128224,1713697846503,-151.0,0.000157,2]
[323128225,1713697846512,-269.221676,0.000157,2]
[323128226,1713697846521,-269.221676,0.000157,2]
[323128227,1713697846531,-150.0,0.000157,2]
[323128228,1713697846540,-182.826577,0.000157,2]
[323128229,1713697846549,-182.826577,0.000157,2]
[323128230,1713697846560,-6900.0,0.000157,5]
[323128231,1713697846569,-337.931997,0.000157,2]
[323128232,1713697846579,-337.931997,0.000157,2]
[323128233,1713697846588,-345.004373,0.000157,2]
[323128234,1713697846598,-345.004373,0.000157,2]
[323128235,1713697846608,-150.0,0.00015701,2]
[323128236,1713697846617,-150.0,0.00015701,2]
[323128237,1713697846626,-150.0,0.00015702,2]
[323128238,1713697846636,-156.240853,0.00015707,2]
[323128239,1713697846645,-156.240853,0.00015707,2]
[323128240,1713697846654,-151.0,0.00015707,2]
[323128241,1713697846663,-151.0,0.00015707,2]
[323128242,1713697846673,-1984.682266,0.00015707,2]
[323128243,1713697846682,-1984.682266,0.00015707,2]
[323128244,1713697846690,-165.73577,0.00015707,2]
[323128245,1713697846701,-165.73577,0.00015707,2]
[323128246,1713697846710,-248.138589,0.00015707,2]
[323128247,1713697846718,-151.974855,0.00015707,2]
[323128248,1713697846728,-151.974855,0.00015707,2]
[323128249,1713697846737,-248.138589,0.00015707,2]
[323128250,1713697846747,-331.121514,0.00015707,2]
[323128251,1713697846756,-331.121514,0.00015707,2]
[323128252,1713697846765,-163.314784,0.00015707,2]
[323128253,1713697846775,-163.314784,0.00015707,2]
[323128254,1713697846784,-151.0,0.00015707,2]
[323128255,1713697846794,-158.096249,0.00015707,2]
[323128256,1713697846803,-158.096249,0.00015707,2]
[323128257,1713697846812,-3492.481418,0.00015707,2]
[323128258,1713697846822,-151.0,0.00015707,2]
[323128259,1713697846831,-3492.481418,0.00015707,2]
[323128260,1713697846840,-151.0,0.00015707,2]
[323128261,1713697846849,-16528.61377039,0.00015707,2]
[323128262,1713697846859,-150.0,0.00015709,2]
[323128263,1713697846868,-150.0,0.00015714,2]
[323128264,1713697846877,-150.0,0.00015714,2]
[323128265,1713697846887,-150.0,0.00015715,2]
[323128266,1713697846896,-151.0,0.00015718,2]
[323128267,1713697846905,-151.0,0.00015718,2]
[323128268,1713697846914,-151.0,0.00015718,2]
[323128269,1713697846923,-151.0,0.00015718,2]
[323128270,1713697846933,-151.0,0.00015718,2]
[323128271,1713697846944,-388.789038,0.00015718,2]
[323128272,1713697846953,-388.789038,0.00015718,2]
[323128273,1713697846963,-605.842851,0.00015718,2]
[323128274,1713697846972,-605.842851,0.00015718,2]
[323128275,1713697846981,-352.149187,0.00015718,2]
[323128276,1713697846991,-352.149187,0.00015718,2]
[323128277,1713697847000,-150.0,0.00015718,2]
[323128278,1713697847010,-287.787434,0.00015721,2]
[323128279,1713697847020,-151.0,0.00015721,2]
[323128280,1713697847030,-189.842568,0.00015721,2]
[323128281,1713697847039,-249.219287,0.00015721,2]
[323128282,1713697847048,-269.221676,0.00015721,2]
[323128283,1713697847057,-269.221676,0.00015721,2]
[323128284,1713697847067,-182.826577,0.00015721,2]
[323128285,1713697847076,-182.826577,0.00015721,2]